fUSD/lending_fUSD_20260622
["ID","MTS","AMOUNT","RATE_DAILY","PERIOD"]
[426006800,1782109845000,-500.0,0.00026499,2]
[426006779,1782109845000,-3386.2443,0.00026345,2]
[426006780,1782109845000,-967.4983,0.00026345,2]
[426006777,1782109845000,-1934.9967,0.00026345,2]
[426006836,1782109845000,-421.13673574,0.00026629,2]
[426006792,1782109845000,-271.97522492,0.00026397,2]
[426006782,1782109845000,-500.0,0.00026356,2]
[426006781,1782109845000,-150.0,0.00026353,7]
[426006784,1782109845000,-242.15909246,0.00026361,2]
[426006783,1782109845000,-358.19769023,0.00026361,2]
[426006785,1782109845000,-200.0,0.00026361,2]
[426006786,1782109845000,-490.60788746,0.00026361,2]
[426006787,1782109845000,-166.842779,0.00026384,2]
[426006789,1782109845000,-166.842779,0.00026384,2]
[426006788,1782109845000,-166.842779,0.00026384,2]
[426006791,1782109845000,-191.73750946,0.00026388,2]
[426006790,1782109845000,-166.842779,0.00026384,2]
[426006795,1782109845000,-150.0,0.00026458,7]
[426006797,1782109845000,-294.34912585,0.0002647,2]
[426006793,1782109845000,-150.0,0.00026431,7]
[426006796,1782109845000,-702.5728794,0.0002647,2]
[426006802,1782109845000,-4927.37,0.000265,7]
[426006799,1782109845000,-500.0,0.00026499,2]
[426006801,1782109845000,-7178.06,0.000265,5]
[426006804,1782109845000,-50000.0,0.000265,7]
[426006798,1782109845000,-500.0,0.00026499,2]
[426006794,1782109845000,-150.0,0.00026458,7]
[426006803,1782109845000,-3862.48,0.000265,7]
[426006806,1782109845000,-50000.0,0.000265,7]
[426006837,1782109845000,-429.31583137,0.00026633,2]
[426006892,1782109845000,-150.0,0.00026744,7]
[426006840,1782109845000,-416.39073334,0.00026633,2]
[426006868,1782109845000,-222.64968079,0.00026636,2]
[426006870,1782109845000,-491.6560832,0.00026636,2]
[426006876,1782109845000,-176.15833958,0.00026636,2]
[426006871,1782109845000,-176.11388065,0.00026636,2]
[426006875,1782109845000,-156.02272529,0.00026636,2]
[426006872,1782109845000,-177.01568833,0.00026636,2]
[426006874,1782109845000,-228.42854703,0.00026636,2]
[426006869,1782109845000,-156.21203103,0.00026636,2]
[426006873,1782109845000,-176.26779981,0.00026636,2]
[426006881,1782109845000,-394.39597243,0.00026636,2]
[426006878,1782109845000,-405.77351666,0.00026636,2]
[426006886,1782109845000,-201.12113211,0.00026666,2]
[426006866,1782109845000,-224.43597747,0.00026633,2]
[426006882,1782109845000,-366.44386548,0.00026636,2]
[426006887,1782109845000,-150.0,0.00026666,7]
[426006885,1782109845000,-502.0,0.00026658,2]
[426006884,1782109845000,-1169.77,0.00026639,2]
[426006888,1782109845000,-150.0,0.00026686,7]
[426006883,1782109845000,-500.0,0.00026638,2]
[426006890,1782109845000,-2100.0,0.000267,9]
[426006889,1782109845000,-150.0,0.00026686,7]
[426006891,1782109845000,-167.35,0.00026726,2]
[426006895,1782109845000,-2800.0,0.000268,9]
[426006893,1782109845000,-150.0,0.00026762,7]
[426006894,1782109845000,-494.34425858,0.00026778,2]
[426006835,1782109845000,-361.45396155,0.00026629,2]
[426006879,1782109845000,-361.42412942,0.00026636,2]
[426006867,1782109845000,-191.1992813,0.00026636,2]
[426006880,1782109845000,-330.84508642,0.00026636,2]
[426006865,1782109845000,-170.42552811,0.00026633,2]
[426006877,1782109845000,-391.39909475,0.00026636,2]
[426006839,1782109845000,-324.93588676,0.00026633,2]
[426006838,1782109845000,-371.17052479,0.00026633,2]
[426006832,1782109845000,-326.8935308,0.00026629,2]
[426006842,1782109845000,-332.30952857,0.00026633,2]
[426006841,1782109845000,-402.89830842,0.00026633,2]
[426006850,1782109845000,-301.70736102,0.00026633,2]
[426006851,1782109845000,-418.29360485,0.00026633,2]
[426006852,1782109845000,-397.33175374,0.00026633,2]
[426006853,1782109845000,-329.18731962,0.00026633,2]
[426006854,1782109845000,-305.78217581,0.00026633,2]
[426006848,1782109845000,-302.93692619,0.00026633,2]
[426006845,1782109845000,-411.34134236,0.00026633,2]
[426006849,1782109845000,-347.15119974,0.00026633,2]
[426006843,1782109845000,-314.01615708,0.00026633,2]
[426006864,1782109845000,-177.36788262,0.00026633,2]
[426006847,1782109845000,-308.78339617,0.00026633,2]
[426006863,1782109845000,-175.77976367,0.00026633,2]
[426006859,1782109845000,-219.87021649,0.00026633,2]
[426006857,1782109845000,-240.40062118,0.00026633,2]
[426006860,1782109845000,-658.52171619,0.00026633,2]
[426006862,1782109845000,-154.7020948,0.00026633,2]
[426006856,1782109845000,-398.92712952,0.00026633,2]
[426006855,1782109845000,-383.48249865,0.00026633,2]
[426006858,1782109845000,-151.13885781,0.00026633,2]
[426006846,1782109845000,-404.20578897,0.00026633,2]
[426006844,1782109845000,-372.44519244,0.00026633,2]
[426006861,1782109845000,-243.72688208,0.00026633,2]
[426006935,1782109846000,-1868.0,0.00027039,2]
[426006936,1782109846000,-150.0,0.00027057,7]
[426006931,1782109846000,-163.93,0.00027,7]
[426006926,1782109846000,-2401.51862858,0.00027,2]
[426006930,1782109846000,-10000.0,0.00027,2]
[426006917,1782109846000,-573.64,0.00026957,2]
[426006929,1782109846000,-11514.55315,0.00027,2]
[426006933,1782109846000,-150.0,0.00027028,7]
[426006937,1782109846000,-150.0,0.00027066,7]
[426006927,1782109846000,-1056.11614905,0.00027,2]
[426006934,1782109846000,-2482.0,0.00027039,2]
[426006928,1782109846000,-530.0,0.00027,2]
[426006939,1782109846000,-500.0,0.00027102,2]
[426006942,1782109846000,-500.0,0.00027102,2]
[426006948,1782109846000,-500.0,0.00027102,2]
[426006938,1782109846000,-452.950745,0.00027092,2]
[426006949,1782109846000,-500.0,0.00027102,2]
[426006940,1782109846000,-500.0,0.00027102,2]
[426006943,1782109846000,-500.0,0.00027102,2]
[426006941,1782109846000,-500.0,0.00027102,2]
[426006945,1782109846000,-500.0,0.00027102,2]
[426006946,1782109846000,-500.0,0.00027102,2]
[426006944,1782109846000,-500.0,0.00027102,2]
[426006952,1782109846000,-500.0,0.00027102,2]
[426006950,1782109846000,-500.0,0.00027102,2]
[426006953,1782109846000,-500.0,0.00027102,2]
[426006947,1782109846000,-500.0,0.00027102,2]
[426006923,1782109846000,-573.56,0.00026957,2]
[426006951,1782109846000,-500.0,0.00027102,2]
[426006916,1782109846000,-151.0,0.00026956,2]
[426006898,1782109846000,-150.0,0.00026822,7]
[426006899,1782109846000,-160.0,0.00026849,3]
[426006897,1782109846000,-10864.0,0.00026808,10]
[426006896,1782109846000,-164.0,0.00026803,3]
[426006900,1782109846000,-250.0,0.00026849,8]
[426006902,1782109846000,-258.96788238,0.00026864,2]
[426006901,1782109846000,-199.11,0.00026849,8]
[426006909,1782109846000,-352.24641963,0.00026909,2]
[426006904,1782109846000,-3600.0,0.000269,9]
[426006910,1782109846000,-205.31196106,0.00026909,2]
[426006911,1782109846000,-490.60788746,0.00026909,2]
[426006903,1782109846000,-247.70697498,0.00026877,2]
[426006921,1782109846000,-573.64,0.00026957,2]
[426006912,1782109846000,-150.0,0.00026914,7]
[426006905,1782109846000,-150.0,0.00026901,7]
[426006908,1782109846000,-358.19769023,0.00026909,2]
[426006907,1782109846000,-747.80937859,0.00026907,2]
[426006914,1782109846000,-644.31,0.0002695,2]
[426006924,1782109846000,-150.0,0.00026979,7]
[426006925,1782109846000,-250.0,0.00027,2]
[426006913,1782109846000,-785.0,0.00026921,2]
[426006915,1782109846000,-573.66,0.00026955,2]
[426006919,1782109846000,-573.64,0.00026957,2]
[426006920,1782109846000,-483.53,0.00026957,2]
[426006922,1782109846000,-573.66,0.00026957,2]
[426006918,1782109846000,-185.21,0.00026957,2]
[426006906,1782109846000,-621.78829552,0.00026907,2]
[426006960,1782109846000,-200.0,0.00027102,2]
[426006932,1782109846000,-3239.0,0.00027,15]
[426006957,1782109846000,-200.0,0.00027102,2]
[426006997,1782109846000,-200.0,0.00027239,2]
[426006996,1782109846000,-200.0,0.00027239,2]
[426006990,1782109846000,-150.0,0.00027135,7]
[426006998,1782109846000,-200.0,0.00027239,2]
[426006989,1782109846000,-151.0,0.00027135,2]
[426006991,1782109846000,-150.0,0.00027142,7]
[426006993,1782109846000,-937.45,0.00027212,7]
[426006992,1782109846000,-1169.77,0.00027144,2]
[426006995,1782109846000,-200.0,0.00027239,2]
[426006994,1782109846000,-150.0,0.00027213,7]
[426006999,1782109846000,-200.0,0.00027239,2]
[426007002,1782109846000,-200.0,0.00027239,2]
[426007006,1782109846000,-200.0,0.00027239,2]
[426007004,1782109846000,-200.0,0.00027239,2]
[426007010,1782109846000,-200.0,0.00027239,2]
[426007000,1782109846000,-200.0,0.00027239,2]
[426007008,1782109846000,-200.0,0.00027239,2]
[426007001,1782109846000,-200.0,0.00027239,2]
[426007012,1782109846000,-200.0,0.00027239,2]
[426007017,1782109846000,-200.0,0.00027239,2]
[426007015,1782109846000,-200.0,0.00027239,2]
[426007016,1782109846000,-200.0,0.00027239,2]
[426007019,1782109846000,-200.0,0.00027239,2]
[426007018,1782109846000,-200.0,0.00027239,2]
[426007020,1782109846000,-336.83175926,0.00027245,2]
[426007021,1782109846000,-785.0,0.00027254,2]
[426006956,1782109846000,-200.0,0.00027102,2]
[426006987,1782109846000,-3363.0,0.00027123,2]
[426006988,1782109846000,-294.0,0.00027123,2]
[426007023,1782109846000,-206.42744374,0.0002727,2]
[426006982,1782109846000,-332.0,0.00027123,2]
[426006959,1782109846000,-200.0,0.00027102,2]
[426006955,1782109846000,-593.0,0.00027102,2]
[426006954,1782109846000,-500.0,0.00027102,2]
[426006958,1782109846000,-200.0,0.00027102,2]
[426006962,1782109846000,-200.0,0.00027102,2]
[426006972,1782109846000,-200.0,0.00027102,2]
[426006961,1782109846000,-200.0,0.00027102,2]
[426006984,1782109846000,-264.0,0.00027123,2]
[426006964,1782109846000,-200.0,0.00027102,2]
[426006967,1782109846000,-200.0,0.00027102,2]
[426006968,1782109846000,-200.0,0.00027102,2]
[426006966,1782109846000,-200.0,0.00027102,2]
[426006965,1782109846000,-200.0,0.00027102,2]
[426006963,1782109846000,-200.0,0.00027102,2]
[426006970,1782109846000,-200.0,0.00027102,2]
[426006969,1782109846000,-200.0,0.00027102,2]
[426006985,1782109846000,-761.0,0.00027123,2]
[426006986,1782109846000,-666.25196188,0.00027123,2]
[426006980,1782109846000,-1054.0,0.00027123,2]
[426006981,1782109846000,-264.0,0.00027123,2]
[426006979,1782109846000,-158.843375,0.00027123,2]
[426006983,1782109846000,-8701.0,0.00027123,2]
[426007022,1782109846000,-871.0,0.00027259,2]
[426006974,1782109846000,-200.0,0.00027102,2]
[426006976,1782109846000,-182.0,0.00027102,2]
[426006973,1782109846000,-200.0,0.00027102,2]
[426006971,1782109846000,-200.0,0.00027102,2]
[426006978,1782109846000,-441.0,0.00027105,5]
[426007029,1782109847000,-500.0,0.00027299,2]
[426007025,1782109847000,-150.0,0.00027292,7]
[426007028,1782109847000,-2529.37799138,0.00027297,2]
[426007026,1782109847000,-195.25226026,0.00027297,2]
[426007033,1782109847000,-9632.27264687,0.0002737,2]
[426007024,1782109847000,-500.0,0.00027277,2]
[426007030,1782109847000,-10000.0,0.000273,2]
[426007032,1782109847000,-1784.25,0.00027315,2]
[426007031,1782109847000,-3000.0,0.000273,3]
[426007027,1782109847000,-579.39441423,0.00027297,2]
[426007034,1782109848000,-371.0,0.00021918,7]
[426007035,1782109848000,-248.4,0.0002737,2]
[426007036,1782109848000,-6565.93716353,0.0002737,2]
[426007038,1782109848000,-400.26377362,0.00024374,2]
[426007039,1782109848000,-1394.33622638,0.00024374,2]
[426007040,1782109848000,-1776.18260616,0.0002737,2]
[426007037,1782109848000,-539.34622638,0.0002737,2]
[426007041,1782109850000,-279.0,0.00025786,10]
[426007042,1782109850000,-440.08639,0.0002737,2]
[426007044,1782109850000,-741.0,0.000267,10]
[426007043,1782109850000,-1812.53107876,0.0002737,2]
[426007045,1782109850000,-504.0,0.00027137,2]
[426007048,1782109850000,-322.8916,0.0002737,2]
[426007047,1782109850000,-1071.0007777,0.0002737,2]
[426007046,1782109850000,-3504.19091849,0.0002737,2]
[426007054,1782110650000,1325.83178328,0.0002,120]
[426007055,1782110683000,170.3936635,0.0002,120]
[426007057,1782111028000,266125.307785,0.00030137,120]
[426007081,1782111032000,-500.0,0.00013359,2]
[426007083,1782111032000,-500.0,0.00013359,2]
[426007087,1782111032000,-500.0,0.00013359,2]
[426007089,1782111032000,-500.0,0.00013359,2]
[426007091,1782111032000,-391.2007639,0.00013359,2]
[426007124,1782111032000,-155.56045573,0.00013359,2]
[426007116,1782111032000,-500.0,0.00013359,2]
[426007114,1782111032000,-500.0,0.00013359,2]
[426007118,1782111032000,-500.0,0.00013359,2]
[426007120,1782111032000,-500.0,0.00013359,2]
[426007122,1782111032000,-500.0,0.00013359,2]
[426007085,1782111032000,-500.0,0.00013359,2]
[426007112,1782111032000,-500.0,0.00013359,2]
[426007079,1782111032000,-500.0,0.00013359,2]
[426007064,1782111032000,-2482.18,0.0001313,2]
[426007071,1782111032000,-172.0,0.00013359,2]
[426007070,1782111032000,-150.0,0.00013359,2]
[426007072,1782111032000,-172.0,0.00013359,2]
[426007067,1782111032000,-201.02252561,0.0001326,2]
[426007069,1782111032000,-843.88,0.00013332,2]
[426007066,1782111032000,-150.0,0.00013242,2]
[426007068,1782111032000,-174.13,0.00013262,2]
[426007065,1782111032000,-150.92,0.00013195,2]
[426007062,1782111032000,-166.66,0.00012842,2]
[426007063,1782111032000,-166.66,0.00013112,2]
[426007061,1782111032000,-150.0,0.00012829,2]
[426007060,1782111032000,-161.74,0.00012825,2]
[426007128,1782111032000,-500.0,0.00013359,2]
[426007073,1782111032000,-172.49953064,0.00013359,2]
[426007133,1782111032000,-500.0,0.00013359,2]
[426007162,1782111032000,-500.0,0.00013526,2]
[426007126,1782111032000,-500.0,0.00013359,2]
[426007176,1782111032000,-21710.46595428,0.00013599,2]
[426007174,1782111032000,-28699.70358133,0.00013599,2]
[426007170,1782111032000,-1195.07193787,0.00013535,2]
[426007173,1782111032000,-2763.19274294,0.00013599,2]
[426007171,1782111032000,-327.31989938,0.00013589,2]
[426007172,1782111032000,-37177.45860919,0.00013599,2]
[426007169,1782111032000,-1182.29416639,0.00013527,2]
[426007168,1782111032000,-500.0,0.00013526,2]
[426007166,1782111032000,-245.65452722,0.00013526,2]
[426007163,1782111032000,-369.49720994,0.00013526,2]
[426007164,1782111032000,-500.0,0.00013526,2]
[426007165,1782111032000,-500.0,0.00013526,2]
[426007160,1782111032000,-335.43801826,0.00013526,2]
[426007167,1782111032000,-435.76539071,0.00013526,2]
[426007158,1782111032000,-170.91097883,0.00013526,2]
[426007157,1782111032000,-500.0,0.00013526,2]
[426007140,1782111032000,-500.0,0.00013362,2]
[426007137,1782111032000,-150.0,0.00013359,2]
[426007135,1782111032000,-266.08258867,0.00013359,2]
[426007142,1782111032000,-5202.35,0.00013363,2]
[426007146,1782111032000,-285.05513885,0.00013371,2]
[426007144,1782111032000,-6745.61,0.00013364,2]
[426007130,1782111032000,-500.0,0.00013359,2]
[426007148,1782111032000,-160.0,0.00013371,2]
[426007161,1782111032000,-500.0,0.00013526,2]
[426007153,1782111032000,-166.66,0.00013382,2]
[426007175,1782111032000,-66286.51609823,0.00013599,2]
[426007150,1782111032000,-150.0,0.00013373,2]
[426007155,1782111032000,-150.0,0.00013504,2]
[426007177,1782111038000,-15814.81881837,0.00013599,2]
[426007179,1782111038000,-4237.55,0.00013599,2]
[426007180,1782111038000,-2136.42527635,0.00013599,2]
[426007178,1782111038000,-618.73257491,0.00013599,2]
[426007185,1782111040000,-905510.62550193,0.00013599,2]
[426007189,1782111043000,-324.27874104,0.00013599,2]
[426007190,1782111043000,-443.5299906,0.00013599,2]
[426007191,1782111046000,-2783.52930563,0.00013599,2]
[426007194,1782111167000,1215.09,0.00023534,120]
[426007193,1782111167000,1215.09,0.00023288,120]
[426007197,1782111168000,1215.09,0.00024274,120]
[426007196,1782111168000,1215.09,0.00024027,120]
[426007195,1782111168000,1215.09,0.00023781,120]
[426007198,1782111169000,1215.09,0.00024521,120]
[426007200,1782111169000,1215.09,0.00025014,120]
[426007199,1782111169000,1215.09,0.00024767,120]
[426007201,1782111170000,1215.09,0.0002526,120]
[426007202,1782111170000,1215.09,0.00025507,120]
[426007203,1782111171000,1215.09,0.00025753,120]
[426007205,1782111172000,1215.09,0.00026247,120]
[426007204,1782111172000,1215.09,0.00026,120]
[426007206,1782111172000,1215.09,0.00026493,120]
[426007209,1782111173000,1215.09,0.00027233,120]
[426007208,1782111173000,1215.09,0.00026986,120]
[426007207,1782111173000,1215.09,0.0002674,120]
[426007211,1782111174000,1215.09,0.00027726,120]
[426007210,1782111174000,1215.09,0.00027479,120]
[426007212,1782111175000,1215.09,0.00027973,120]
[426007213,1782111176000,1215.09,0.00028219,120]
[426007215,1782111176000,1215.09,0.00028712,120]
[426007214,1782111176000,1215.09,0.00028466,120]
[426007218,1782111177000,1215.09,0.00029452,120]
[426007217,1782111177000,1215.09,0.00029205,120]
[426007216,1782111177000,1215.09,0.00028959,120]
[426007220,1782111178000,1215.09,0.00029945,120]
[426007219,1782111178000,1215.09,0.00029699,120]
[426007221,1782111250000,4366.15,0.0003,120]
[426007222,1782111285000,171.09,0.00010355,2]
[426007223,1782111316000,-150.68106,0.00012825,7]
[426007224,1782111404000,3297.36468413,0.00028,120]
[426007226,1782111469000,-150.0,0.00012825,7]
[426007231,1782111663000,183.01649689,0.00010355,2]
[426007238,1782111963000,167.25472949,0.00010355,2]
[426007240,1782112117000,-708.53214547,0.00011887,2]
[426007239,1782112117000,-200.0,0.00011776,2]
[426007257,1782112232000,-150.0,0.00012363,2]
[426007247,1782112232000,-219.073,0.00012004,2]
[426007258,1782112232000,-150.0,0.00012483,2]
[426007255,1782112232000,-1537.36,0.0001236,2]
[426007254,1782112232000,-164.06,0.00012285,2]
[426007246,1782112232000,-168.445108,0.00012004,2]
[426007253,1782112232000,-166.66,0.00012257,2]
[426007251,1782112232000,-150.0,0.00012123,2]
[426007249,1782112232000,-806.27,0.00012023,2]
[426007252,1782112232000,-150.0,0.00012243,2]
[426007250,1782112232000,-1537.36,0.00012065,2]
[426007256,1782112232000,-150.0,0.00012361,2]
[426007244,1782112232000,-150.0,0.00011917,2]
[426007243,1782112232000,-38.79785453,0.00011887,2]
[426007241,1782112232000,-180.74,0.0001176,2]
[426007245,1782112232000,-250.0,0.00011946,2]
[426007259,1782112232000,-166.66,0.0001251,2]
[426007248,1782112232000,-166.66,0.00012004,2]
[426007260,1782112232000,-160.0,0.00012517,2]
[426007242,1782112232000,-1537.36,0.00011771,2]
[426007264,1782112232000,-514.06274015,0.000126,4]
[426007261,1782112232000,-183.50101864,0.00012529,2]
[426007276,1782112232000,-4700.0,0.000129,4]
[426007279,1782112232000,-1167.869,0.00013015,2]
[426007274,1782112232000,-3500.0,0.000128,4]
[426007275,1782112232000,-276.37,0.00012877,2]
[426007272,1782112232000,-166.66,0.00012763,2]
[426007278,1782112232000,-1537.36,0.00012948,2]
[426007277,1782112232000,-251.12601083,0.00012936,2]
[426007282,1782112232000,-854.29573074,0.00013029,2]
[426007269,1782112232000,-2300.0,0.000127,4]
[426007270,1782112232000,-216.35787048,0.00012708,2]
[426007281,1782112232000,-185.87641931,0.00013015,2]
[426007267,1782112232000,-1745.03891611,0.000127,2]
[426007265,1782112232000,-585.93725985,0.000126,4]
[426007268,1782112232000,-16578.00108389,0.000127,2]
[426007266,1782112232000,-1537.36,0.00012654,2]
[426007262,1782112232000,-39.69828298,0.00012529,2]
[426007263,1782112232000,-444.56380847,0.00012529,2]
[426007280,1782112232000,-166.66,0.00013015,2]
[426007296,1782112233000,-250.0,0.00013076,2]
[426007293,1782112233000,-1729.1439,0.00013029,2]
[426007303,1782112233000,-11085.98814203,0.00013104,2]
[426007292,1782112233000,-1277.97532112,0.00013029,2]
[426007294,1782112233000,-822.22625349,0.00013058,2]
[426007295,1782112233000,-193.42285252,0.00013076,2]
[426007297,1782112233000,-868.89545503,0.00013104,2]
[426007302,1782112233000,-710.26926903,0.00013104,2]
[426007298,1782112233000,-1346.54912601,0.00013104,2]
[426007300,1782112233000,-474.0258441,0.00013104,2]
[426007301,1782112233000,-14079.87475415,0.00013104,2]
[426007304,1782112233000,-6832.0,0.00013123,2]
[426007306,1782112233000,-80107.53359098,0.00013158,2]
[426007307,1782112233000,-740.01793856,0.00013158,2]
[426007305,1782112233000,-281.72614083,0.00013148,2]
[426007299,1782112233000,-175.99450517,0.00013104,2]
[426007319,1782112238000,-2547.95412992,0.00013362,2]
[426007320,1782112238000,-150.0,0.00013389,2]
[426007325,1782112238000,-150.0,0.00013389,2]
[426007324,1782112238000,-150.0,0.00013389,2]
[426007322,1782112238000,-150.0,0.00013389,2]
[426007316,1782112238000,-1195.32541436,0.00013362,2]
[426007309,1782112238000,-2408705.66218893,0.00013158,2]
[426007314,1782112238000,-14079.87475412,0.00013304,2]
[426007313,1782112238000,-160.0,0.00013279,2]
[426007311,1782112238000,-500.0,0.00013204,2]
[426007317,1782112238000,-4729.27826936,0.00013362,2]
[426007310,1782112238000,-250.0,0.00013204,2]
[426007308,1782112238000,-10446.78628153,0.00013158,2]
[426007327,1782112238000,-255.0,0.00013449,2]
[426007312,1782112238000,-166.66,0.00013268,2]
[426007330,1782112238000,-11085.988142,0.00013503,2]
[426007315,1782112238000,-11085.988142,0.00013304,2]
[426007323,1782112238000,-150.0,0.00013389,2]
[426007328,1782112238000,-150.0,0.00013474,2]
[426007341,1782112238000,-150.0,0.00013602,2]
[426007337,1782112238000,-150.0,0.00013575,2]
[426007335,1782112238000,-150.0,0.00013554,2]
[426007333,1782112238000,-806.27,0.00013526,2]
[426007334,1782112238000,-1000.0,0.00013534,2]
[426007336,1782112238000,-150.0,0.00013559,2]
[426007339,1782112238000,-24528.6630279,0.00013591,2]
[426007332,1782112238000,-150.0,0.00013517,2]
[426007329,1782112238000,-14079.87475412,0.00013503,2]
[426007340,1782112238000,-1306.15136854,0.00013598,3]
[426007318,1782112238000,-2222.60728768,0.00013362,2]
[426007321,1782112238000,-150.0,0.00013389,2]
[426007331,1782112238000,-150.0,0.00013513,2]
[426007338,1782112238000,-4280.4300248,0.00013591,2]
[426007326,1782112238000,-150.0,0.00013432,2]
[426007384,1782112239000,-183.289363,0.0001382,2]
[426007370,1782112239000,-169.87,0.00013699,2]
[426007378,1782112239000,-150.0,0.00013761,2]
[426007380,1782112239000,-150.0,0.00013772,2]
[426007376,1782112239000,-180.74,0.0001372,2]
[426007377,1782112239000,-150.0,0.00013729,2]
[426007373,1782112239000,-150.0,0.00013701,7]
[426007379,1782112239000,-150.0,0.00013761,2]
[426007383,1782112239000,-258.230448,0.0001382,2]
[426007388,1782112239000,-150.0,0.00013885,2]
[426007386,1782112239000,-150.0,0.00013857,2]
[426007392,1782112239000,-150.0,0.00013942,2]
[426007385,1782112239000,-196.374384,0.0001382,2]
[426007389,1782112239000,-150.0,0.00013899,2]
[426007387,1782112239000,-150.0,0.00013885,2]
[426007391,1782112239000,-14079.87475412,0.00013902,2]
[426007394,1782112239000,-207.225024,0.00013975,2]
[426007390,1782112239000,-500.0,0.00013901,2]
[426007393,1782112239000,-150.0,0.00013947,2]
[426007375,1782112239000,-150.0,0.0001372,2]
[426007396,1782112239000,-250.0,0.00014,2]
[426007404,1782112239000,-150.0,0.00014026,2]
[426007406,1782112239000,-150.0,0.00014026,2]
[426007405,1782112239000,-150.0,0.00014026,2]
[426007395,1782112239000,-150.0,0.00013984,2]
[426007399,1782112239000,-150.0,0.00014026,2]
[426007382,1782112239000,-253.138855,0.0001382,2]
[426007374,1782112239000,-14079.87475412,0.00013703,2]
[426007362,1782112239000,-511.96567005,0.00013698,2]
[426007371,1782112239000,-849.36,0.00013699,2]
[426007401,1782112239000,-196.49511659,0.00014026,2]
[426007344,1782112239000,-150.0,0.00013687,2]
[426007343,1782112239000,-150.0,0.00013644,2]
[426007342,1782112239000,-150.0,0.00013637,2]
[426007346,1782112239000,-500.0,0.00013698,2]
[426007347,1782112239000,-500.0,0.00013698,2]
[426007357,1782112239000,-500.0,0.00013698,2]
[426007345,1782112239000,-500.0,0.00013698,2]
[426007348,1782112239000,-500.0,0.00013698,2]
[426007349,1782112239000,-500.0,0.00013698,2]
[426007356,1782112239000,-500.0,0.00013698,2]
[426007350,1782112239000,-500.0,0.00013698,2]
[426007351,1782112239000,-500.0,0.00013698,2]
[426007372,1782112239000,-18676.52,0.00013699,2]
[426007353,1782112239000,-500.0,0.00013698,2]
[426007355,1782112239000,-500.0,0.00013698,2]
[426007358,1782112239000,-500.0,0.00013698,2]
[426007359,1782112239000,-500.0,0.00013698,2]
[426007361,1782112239000,-293.48689321,0.00013698,2]
[426007363,1782112239000,-9999.99,0.00013699,2]
[426007367,1782112239000,-293.53,0.00013699,2]
[426007365,1782112239000,-9999.99,0.00013699,2]
[426007360,1782112239000,-477.74,0.00013698,2]
[426007364,1782112239000,-9999.99,0.00013699,2]
[426007368,1782112239000,-244.61,0.00013699,2]
[426007369,1782112239000,-203.84,0.00013699,2]
[426007366,1782112239000,-200.0,0.00013699,2]
[426007381,1782112239000,-150.0,0.00013814,2]
[426007354,1782112239000,-500.0,0.00013698,2]
[426007397,1782112239000,-1346.54912599,0.00014002,2]
[426007416,1782112239000,-500.0,0.00014026,2]
[426007402,1782112239000,-150.0,0.00014026,2]
[426007440,1782112239000,-500.0,0.00014026,2]
[426007439,1782112239000,-500.0,0.00014026,2]
[426007435,1782112239000,-500.0,0.00014026,2]
[426007443,1782112239000,-500.0,0.00014026,2]
[426007441,1782112239000,-500.0,0.00014026,2]